Body Name,ONS SNAC ID,Pay Date,Transaction No,Amount �,Supplier Name,Company Registration No,Department,Account Name,CIPFA Service Reporting
Swale Borough Council,29UM,05/02/2020,1174092,15000.00,ANCASTER GROUP,                         ,FINANCIAL SERVICES,Payments in Year,Ledger/Suspense Codes
Swale Borough Council,29UM,05/02/2020,1174165,12838.50,APCOA PARKING (UK) LTD,2572947                  ,CAR PARKS,Private Contractors,Highway and Transport Services
Swale Borough Council,29UM,05/02/2020,1174165,19257.76,APCOA PARKING (UK) LTD,2572947                  ,CAR PARKS,Private Contractors,Highway and Transport Services
Swale Borough Council,29UM,05/02/2020,1173998,695.00,ASSOC. OF TOWN CENTRE MANAGEMENT,                         ,ECONOMIC DEVELOPMENT,Fees and Services,Planning and Development Services
Swale Borough Council,29UM,05/02/2020,1174169,3303.11,BLENWOOD LTD,4383277                  ,LEISURE & OPEN SPACES,Grounds Maint Suspense,Cultural and Related Services
Swale Borough Council,29UM,05/02/2020,1174170,105326.14,BLENWOOD LTD,4383277                  ,LEISURE & OPEN SPACES,Grounds Maint Suspense,Cultural and Related Services
Swale Borough Council,29UM,05/02/2020,1174214,3096.98,BLENWOOD LTD,4383277                  ,LEISURE & OPEN SPACES,Maintenance - Grounds Contract,Cultural and Related Services
Swale Borough Council,29UM,05/02/2020,1174028,6020.66,BROADWAY ESTATES,                         ,REVENUE SERVICES,Fees and Services,Housing
Swale Borough Council,29UM,05/02/2020,1174167,670.00,CAPITA BUSINESS SERVICES LTD,                         ,REVENUE SERVICES,Fees and Services,Central Services to the Public
Swale Borough Council,29UM,05/02/2020,1174167,670.00,CAPITA BUSINESS SERVICES LTD,                         ,REVENUE SERVICES,Fees and Services,Housing
Swale Borough Council,29UM,05/02/2020,1173943,1487.46,CASTLE WATER LIMITED,SC475583                 ,CONTRACTS,Water - Metered,Environmental and Regulatory Services
Swale Borough Council,29UM,05/02/2020,1174123,250.00,DIVERSITY HOUSE LIMITED,6188059                  ,ECONOMY & COMMUNITIES,Grants & Subscriptions,Central Services to the Public
Swale Borough Council,29UM,05/02/2020,1174148,974.00,HISTORIC SWALE,                         ,TOURISM & SPORTS DEVELOPMENT,Grants & Subscriptions,Cultural and Related Services
Swale Borough Council,29UM,05/02/2020,1173851,1000.00,IDOX SOFTWARE LTD,06706798                 ,DEMOCRATIC & ELECTORAL SERVICES,Computer Equipment & Materials,Central Services to the Public
Swale Borough Council,29UM,05/02/2020,1174210,1550.00,KAREBEAR KENNELS LTD,                         ,ENVIRONMENTAL RESPONSE TEAM,Kennelling Of Dogs,Environmental and Regulatory Services
Swale Borough Council,29UM,05/02/2020,1174210,-185.00,KAREBEAR KENNELS LTD,                         ,ENVIRONMENTAL RESPONSE TEAM,Income collected by Dog Kennels,Environmental and Regulatory Services
Swale Borough Council,29UM,05/02/2020,1174119,990.00,REDACTED PERSONAL INFORMATION,                         ,LEISURE & OPEN SPACES,Tree Maintenance,Cultural and Related Services
Swale Borough Council,29UM,05/02/2020,1174120,1355.00,REDACTED PERSONAL INFORMATION,                         ,LEISURE & OPEN SPACES,Consultancy/Specialist Advice,Cultural and Related Services
Swale Borough Council,29UM,05/02/2020,1174183,455.00,LYRECO UK LTD,                         ,PROPERTY SERVICES,Paper,Internal Trading Cost Centres
Swale Borough Council,29UM,05/02/2020,1174200,302.93,LYRECO UK LTD,                         ,PROPERTY SERVICES,Paper,Internal Trading Cost Centres
Swale Borough Council,29UM,05/02/2020,1173978,80576.88,MAIDSTONE BOROUGH COUNCIL,                         ,CONTRACTS,Private Contractors,Environmental and Regulatory Services
Swale Borough Council,29UM,05/02/2020,1173978,216478.37,MAIDSTONE BOROUGH COUNCIL,                         ,CONTRACTS,Private Contractors,Environmental and Regulatory Services
Swale Borough Council,29UM,05/02/2020,1174126,12354.28,MATRIX SCM LTD,2227962                  ,HUMAN RESOURCES,Agency/Contract Staff,Internal Trading Cost Centres
Swale Borough Council,29UM,05/02/2020,1174160,665.00,METRIC GROUP LTD,2560839                  ,CAR PARKS,Equipment Maintenance,Highway and Transport Services
Swale Borough Council,29UM,05/02/2020,1174218,2505.72,METRIC GROUP LTD,2560839                  ,CAR PARKS,Equipment Maintenance,Highway and Transport Services
Swale Borough Council,29UM,05/02/2020,1174164,367.50,MILTON COURT PRIMARY ACADEMY,                         ,FINANCIAL SERVICES,Payments in Year,Ledger/Suspense Codes
Swale Borough Council,29UM,05/02/2020,1174225,18528.62,MONITOR CLEANING SERVICES LTD,02526388                 ,CONTRACTS,Private Contractors,Environmental and Regulatory Services
Swale Borough Council,29UM,05/02/2020,1174125,596.40,NEWINGTON VILLAGE HALL,                         ,EMERGENCY PLANNING,Grants & Subscriptions,Central Services to the Public
Swale Borough Council,29UM,05/02/2020,1174083,657.00,REDACTED PERSONAL INFORMATION,                         ,HOUSING SERVICES,Building Maintenance - Reactive,Housing
Swale Borough Council,29UM,05/02/2020,1174141,516.00,O2 (UK) LTD,1743099                  ,HOUSING SERVICES,Cellphone,Housing
Swale Borough Council,29UM,05/02/2020,1174101,52257.00,PARAMOUNT INDEPENDENT PROPERTY SERVICES,                         ,HOUSING SERVICES,NL (Nightly Lets) - Homelessness Landlord Payments,Housing
Swale Borough Council,29UM,05/02/2020,1174101,1395.00,PARAMOUNT INDEPENDENT PROPERTY SERVICES,                         ,HOUSING SERVICES,NL (Nightly Lets) - Homelessness Landlord Payments,Housing
Swale Borough Council,29UM,05/02/2020,1174153,290.33,PORTAKABIN LIMITED,685303                   ,LEISURE & OPEN SPACES,Maintenance - Grounds,Environmental and Regulatory Services
Swale Borough Council,29UM,05/02/2020,1173956,650.00,RAINBOW WATER SERVICES LTD,2735065                  ,PROPERTY SERVICES,Non-Planned Building Maintenance,Corporate & Democratic Core
Swale Borough Council,29UM,05/02/2020,1174166,500.00,RICHMOND ACADEMY,                         ,DEMOCRATIC & ELECTORAL SERVICES,Hire Of Premises,Ledger/Suspense Codes
Swale Borough Council,29UM,05/02/2020,1174035,870.03,ROYAL MAIL GROUP LTD,4138203                  ,REVENUE SERVICES,Postage,Central Services to the Public
Swale Borough Council,29UM,05/02/2020,1174140,1274.46,ROYAL MAIL GROUP LTD,4138203                  ,PROPERTY SERVICES,Postage,Holding Codes
Swale Borough Council,29UM,05/02/2020,1174293,341188.26,SPIRIT OF SITTINGBOURNE LLP,OC377168                 ,FINANCIAL SERVICES,STC - Capitalised Fees And Charges,Not used in this Structure
Swale Borough Council,29UM,05/02/2020,1173984,8966.74,STANTEC UK LIMITED,01188070                 ,PLANNING SERVICES,Fees and Services,Planning and Development Services
Swale Borough Council,29UM,05/02/2020,1174057,350.00,SWALE PRIDE CIC,                         ,ECONOMY & COMMUNITIES,Grants & Subscriptions,Central Services to the Public
Swale Borough Council,29UM,05/02/2020,1174131,800.00,THE AUTISM APPRENTICE CIC,                         ,ECONOMY & COMMUNITIES,Grants & Subscriptions,Central Services to the Public
Swale Borough Council,29UM,05/02/2020,1174098,1739.00,THE OYSTER PARTNERSHIP,05020374                 ,PLANNING SERVICES,Agency/Contract Staff,Internal Trading Cost Centres
Swale Borough Council,29UM,05/02/2020,1174099,1716.00,THE OYSTER PARTNERSHIP,05020374                 ,PLANNING SERVICES,Agency/Contract Staff,Planning and Development Services
Swale Borough Council,29UM,05/02/2020,1174162,252.00,UPCHURCH VILLAGE HALL,00302873                 ,DEMOCRATIC & ELECTORAL SERVICES,Hire Of Premises,Ledger/Suspense Codes
Swale Borough Council,29UM,05/02/2020,1173966,1260.00,VIVID RESOURCING LIMITED,06459262                 ,PLANNING SERVICES,Agency/Contract Staff,Internal Trading Cost Centres
Swale Borough Council,29UM,05/02/2020,1174127,1554.00,VIVID RESOURCING LIMITED,06459262                 ,PLANNING SERVICES,Agency/Contract Staff,Internal Trading Cost Centres
Swale Borough Council,29UM,05/02/2020,1174217,438.05,VR SANI-CO LTD,3588359                  ,CONTRACTS,Hygiene Service Contracts,Environmental and Regulatory Services
Swale Borough Council,29UM,05/02/2020,1173692,434.10,WHISTL UK LIMITED,04417047                 ,REVENUE SERVICES,Postage,Central Services to the Public
Swale Borough Council,29UM,05/02/2020,1173692,217.05,WHISTL UK LIMITED,04417047                 ,REVENUE SERVICES,Postage,Housing
Swale Borough Council,29UM,05/02/2020,1173692,13.33,WHISTL UK LIMITED,04417047                 ,LEISURE & OPEN SPACES,Postage,Internal Trading Cost Centres
Swale Borough Council,29UM,05/02/2020,1173692,15.77,WHISTL UK LIMITED,04417047                 ,CAR PARKS,Postage,Internal Trading Cost Centres
Swale Borough Council,29UM,05/02/2020,1173692,28.87,WHISTL UK LIMITED,04417047                 ,PROPERTY SERVICES,Postage,Holding Codes
Swale Borough Council,29UM,05/02/2020,1173692,172.84,WHISTL UK LIMITED,04417047                 ,DEMOCRATIC & ELECTORAL SERVICES,Postage,Central Services to the Public
Swale Borough Council,29UM,05/02/2020,1173858,933.24,WHISTL UK LIMITED,04417047                 ,REVENUE SERVICES,Postage,Central Services to the Public
Swale Borough Council,29UM,05/02/2020,1173858,466.61,WHISTL UK LIMITED,04417047                 ,REVENUE SERVICES,Postage,Housing
Swale Borough Council,29UM,05/02/2020,1173858,81.93,WHISTL UK LIMITED,04417047                 ,LEISURE & OPEN SPACES,Postage,Internal Trading Cost Centres
Swale Borough Council,29UM,05/02/2020,1173858,8.42,WHISTL UK LIMITED,04417047                 ,CAR PARKS,Postage,Internal Trading Cost Centres
Swale Borough Council,29UM,05/02/2020,1173858,139.73,WHISTL UK LIMITED,04417047                 ,PROPERTY SERVICES,Postage,Holding Codes
Swale Borough Council,29UM,05/02/2020,1173858,409.30,WHISTL UK LIMITED,04417047                 ,DEMOCRATIC & ELECTORAL SERVICES,Postage,Central Services to the Public
Swale Borough Council,29UM,12/02/2020,1174348,358.05,ADELANTE SOFTWARE LTD,4450760                  ,REVENUE SERVICES,Commission Paid,Central Services to the Public
Swale Borough Council,29UM,12/02/2020,1174348,5.43,ADELANTE SOFTWARE LTD,4450760                  ,REVENUE SERVICES,Commission Paid,Housing
Swale Borough Council,29UM,12/02/2020,1174348,180.00,ADELANTE SOFTWARE LTD,4450760                  ,EXCHEQUER,Commission Paid,Internal Trading Cost Centres
Swale Borough Council,29UM,12/02/2020,1174150,8687.00,ALCIUM SOFTWARE LIMITED,4157769                  ,ECONOMIC DEVELOPMENT,Fees and Services,Planning and Development Services
Swale Borough Council,29UM,12/02/2020,1174351,1817.62,ALLPAY LTD,02933191                 ,REVENUE SERVICES,Bank Charges Pay Point,Central Services to the Public
Swale Borough Council,29UM,12/02/2020,1174351,29.58,ALLPAY LTD,02933191                 ,REVENUE SERVICES,Bank Charges Pay Point,Housing
Swale Borough Council,29UM,12/02/2020,1174351,18.19,ALLPAY LTD,02933191                 ,EXCHEQUER,Bank Charges Pay Point,Internal Trading Cost Centres
Swale Borough Council,29UM,12/02/2020,1174202,147.31,ALLSTAR BUSINESS SOLUTIONS LTD - (DT),1073098                  ,SERVICE DELIVERY,Petrol/Derv & Oil,Cultural and Related Services
Swale Borough Council,29UM,12/02/2020,1174202,593.63,ALLSTAR BUSINESS SOLUTIONS LTD - (DT),1073098                  ,ENVIRONMENTAL RESPONSE TEAM,Fuel For Contract Vehicles,Internal Trading Cost Centres
Swale Borough Council,29UM,12/02/2020,1174202,86.77,ALLSTAR BUSINESS SOLUTIONS LTD - (DT),1073098                  ,LEISURE & OPEN SPACES,Fuel For Contract Vehicles,Cultural and Related Services
Swale Borough Council,29UM,12/02/2020,1174202,56.52,ALLSTAR BUSINESS SOLUTIONS LTD - (DT),1073098                  ,ENVIRONMENTAL RESPONSE TEAM,Fuel For Contract Vehicles,Environmental and Regulatory Services
Swale Borough Council,29UM,12/02/2020,1174464,12595.00,AUTOWORLD S E LTD - DT,                         ,FINANCIAL SERVICES,Payments in Year,Ledger/Suspense Codes
Swale Borough Council,29UM,12/02/2020,1174325,1835.00,BATES JPW ADVERTISING LTD,784540                   ,PLANNING SERVICES,Recruitment Adverts - Staff,Internal Trading Cost Centres
Swale Borough Council,29UM,12/02/2020,1174326,1835.00,BATES JPW ADVERTISING LTD,784540                   ,PLANNING SERVICES,Recruitment Adverts - Staff,Internal Trading Cost Centres
Swale Borough Council,29UM,12/02/2020,1174226,272.22,BLENWOOD LTD,4383277                  ,LEISURE & OPEN SPACES,Maintenance - Grounds,Cultural and Related Services
Swale Borough Council,29UM,12/02/2020,1174249,1760.00,BLENWOOD LTD,4383277                  ,LEISURE & OPEN SPACES,CIS - Special Projects Fund Expenditure,Ledger/Suspense Codes
Swale Borough Council,29UM,12/02/2020,1174345,4382.00,BLENWOOD LTD,4383277                  ,LEISURE & OPEN SPACES,Special Projects Fund Expenditure - Non CIS,Ledger/Suspense Codes
Swale Borough Council,29UM,12/02/2020,1173887,2890.42,BLOOM PROCUREMENT SERVICES LTD,08045123                 ,PLANNING SERVICES,Fees and Services,Planning and Development Services
Swale Borough Council,29UM,12/02/2020,1174333,550.00,BOTTOMLINE TECHNOLOGIES LIMITED,08098450                 ,FINANCIAL SERVICES,Computer Equipment & Materials,Internal Trading Cost Centres
Swale Borough Council,29UM,12/02/2020,1174465,875.00,BROADWAY ESTATES,                         ,REVENUE SERVICES,KCC Relocation Scheme - Expenditure,Housing
Swale Borough Council,29UM,12/02/2020,1172365,6424.00,BROGDALE CIC,                         ,DIRECTOR OF REGENERATION,Capitalised Fees And Charges,Not used in this Structure
Swale Borough Council,29UM,12/02/2020,1174330,1500.00,CIPFA BUSINESS LTD,2376684                  ,FINANCIAL SERVICES,Fees and Services,Internal Trading Cost Centres
Swale Borough Council,29UM,12/02/2020,1174384,3700.00,CIPFA BUSINESS LTD,2376684                  ,FINANCIAL SERVICES,Payments in Year,Ledger/Suspense Codes
Swale Borough Council,29UM,12/02/2020,1174385,2975.00,CIPFA BUSINESS LTD,2376684                  ,FINANCIAL SERVICES,Payments in Year,Ledger/Suspense Codes
Swale Borough Council,29UM,12/02/2020,1174370,491.00,CLIVE SHERWOOD - STONE WORKS,                         ,LEISURE & OPEN SPACES,Maintenance - Grounds,Environmental and Regulatory Services
Swale Borough Council,29UM,12/02/2020,1174437,9554.12,COLDWELL CONSTRUCTION LTD,4814340                  ,HOUSING SERVICES,Housing Renovation Grants,Not used in this Structure
Swale Borough Council,29UM,12/02/2020,1174253,1300.00,CREED OUTDOOR LEARNING,                         ,ECONOMY & COMMUNITIES,Grants & Subscriptions,Central Services to the Public
Swale Borough Council,29UM,12/02/2020,1174439,19138.01,DAYTRAD LIMITED,7654373                  ,HOUSING SERVICES,Housing Renovation Grants,Not used in this Structure
Swale Borough Council,29UM,12/02/2020,1174365,332.50,DCF VETERINARY CONSULTANCY LTD,10457421                 ,ENVIRONMENTAL RESPONSE TEAM,Fees - Veterinary,Environmental and Regulatory Services
Swale Borough Council,29UM,12/02/2020,1174251,1000.00,DIVERSITY HOUSE LIMITED,6188059                  ,TOURISM & SPORTS DEVELOPMENT,Grants & Subscriptions,Cultural and Related Services
Swale Borough Council,29UM,12/02/2020,1174434,5200.00,DOLPHIN STAIRLIFTS (KENT),04181846                 ,HOUSING SERVICES,Housing Renovation Grants,Not used in this Structure
Swale Borough Council,29UM,12/02/2020,1174152,1669.00,REDACTED PERSONAL INFORMATION,                         ,HOUSING SERVICES,Homelessness  Prevention Services,Housing
Swale Borough Council,29UM,12/02/2020,1174400,295.00,FIRE & SECURITY CONSULTANCY LTD,5946022                  ,PROPERTY SERVICES,Service Contracts,Corporate & Democratic Core
Swale Borough Council,29UM,12/02/2020,1174433,3035.00,HIGHER ELEVATION LTD,4078005                  ,HOUSING SERVICES,Housing Renovation Grants,Not used in this Structure
Swale Borough Council,29UM,12/02/2020,1174432,5400.00,HUBBARD & HOUGHTON CONSTRUCTION LTD,                         ,HOUSING SERVICES,Housing Renovation Grants,Not used in this Structure
Swale Borough Council,29UM,12/02/2020,1174006,8810.94,ICENI PROJECTS,05359427                 ,PLANNING SERVICES,Fees and Services,Planning and Development Services
Swale Borough Council,29UM,12/02/2020,1174009,7118.84,IDEAGEN GAEL LIMITED,SC208191                 ,POLICY AND PERFORMANCE,Payments in Year,Ledger/Suspense Codes
Swale Borough Council,29UM,12/02/2020,1174438,5736.59,J & D SYSTEMS,                         ,HOUSING SERVICES,Housing Renovation Grants,Not used in this Structure
Swale Borough Council,29UM,12/02/2020,1174252,712.00,KEMSLEY SHORT MAT BOWLS,                         ,TOURISM & SPORTS DEVELOPMENT,Grants & Subscriptions,Cultural and Related Services
Swale Borough Council,29UM,12/02/2020,1174171,2338.24,KENT COUNTY COUNCIL,                         ,SERVICE DELIVERY,Fees and Services,Highway and Transport Services
Swale Borough Council,29UM,12/02/2020,1174329,5955.90,LA SUPPORT LIMITED,11850540                 ,ENVIRONMENTAL RESPONSE TEAM,Fees and Services,Planning and Development Services
Swale Borough Council,29UM,12/02/2020,1174471,18.00,LAND REGISTRY - (DT),                         ,PROPERTY SERVICES,Fees - Land Registry,Trading Undertaking
Swale Borough Council,29UM,12/02/2020,1174471,39.00,LAND REGISTRY - (DT),                         ,REVENUE SERVICES,Fees - Land Registry,Central Services to the Public
Swale Borough Council,29UM,12/02/2020,1174471,42.00,LAND REGISTRY - (DT),                         ,PLANNING SERVICES,Fees - Land Registry,Planning and Development Services
Swale Borough Council,29UM,12/02/2020,1174471,3.00,LAND REGISTRY - (DT),                         ,ECONOMIC DEVELOPMENT,Fees - Land Registry,Planning and Development Services
Swale Borough Council,29UM,12/02/2020,1174471,15.00,LAND REGISTRY - (DT),                         ,ENVIRONMENTAL RESPONSE TEAM,Fees - Land Registry,Internal Trading Cost Centres
Swale Borough Council,29UM,12/02/2020,1174471,63.00,LAND REGISTRY - (DT),                         ,MKS LEGAL SERVICES,Fees - Land Registry,Internal Trading Cost Centres
Swale Borough Council,29UM,12/02/2020,1174471,15.00,LAND REGISTRY - (DT),                         ,PLANNING SERVICES,Fees - Land Registry,Internal Trading Cost Centres
Swale Borough Council,29UM,12/02/2020,1174471,12.00,LAND REGISTRY - (DT),                         ,CONTRACTS,Fees - Land Registry,Internal Trading Cost Centres
Swale Borough Council,29UM,12/02/2020,1174471,24.00,LAND REGISTRY - (DT),                         ,HOUSING SERVICES,Fees - Land Registry,Housing
Swale Borough Council,29UM,12/02/2020,1174471,33.00,LAND REGISTRY - (DT),                         ,HOUSING SERVICES,Fees - Land Registry,Housing
Swale Borough Council,29UM,12/02/2020,1174275,600.00,LEMAR LIMITED,04350292                 ,LEISURE & OPEN SPACES,CIS - Special Projects Fund Expenditure,Ledger/Suspense Codes
Swale Borough Council,29UM,12/02/2020,1174275,1275.00,LEMAR LIMITED,04350292                 ,LEISURE & OPEN SPACES,CIS - Special Projects Fund Expenditure,Ledger/Suspense Codes
Swale Borough Council,29UM,12/02/2020,1174276,500.00,LEMAR LIMITED,04350292                 ,LEISURE & OPEN SPACES,Maintenance - Grounds,Environmental and Regulatory Services
Swale Borough Council,29UM,12/02/2020,1174276,495.00,LEMAR LIMITED,04350292                 ,LEISURE & OPEN SPACES,Maintenance - Grounds,Environmental and Regulatory Services
Swale Borough Council,29UM,12/02/2020,1174284,250.00,LEMAR LIMITED,04350292                 ,CAR PARKS,Maintenance - Grounds,Highway and Transport Services
Swale Borough Council,29UM,12/02/2020,1174284,25.00,LEMAR LIMITED,04350292                 ,CAR PARKS,Maintenance - Grounds,Highway and Transport Services
Swale Borough Council,29UM,12/02/2020,1174287,600.00,LEMAR LIMITED,04350292                 ,CAR PARKS,Maintenance - Grounds,Highway and Transport Services
Swale Borough Council,29UM,12/02/2020,1174287,2175.00,LEMAR LIMITED,04350292                 ,CAR PARKS,Maintenance - Grounds,Highway and Transport Services
Swale Borough Council,29UM,12/02/2020,1174173,1575.00,LUSHLAND,4289261                  ,PLANNING SERVICES,Fees and Services,Planning and Development Services
Swale Borough Council,29UM,12/02/2020,1173979,86211.79,MAIDSTONE BOROUGH COUNCIL,                         ,CONTRACTS,Private Contractors,Environmental and Regulatory Services
Swale Borough Council,29UM,12/02/2020,1173979,9981.23,MAIDSTONE BOROUGH COUNCIL,                         ,CONTRACTS,Variations To Contract,Environmental and Regulatory Services
Swale Borough Council,29UM,12/02/2020,1173979,216865.55,MAIDSTONE BOROUGH COUNCIL,                         ,CONTRACTS,Private Contractors,Environmental and Regulatory Services
Swale Borough Council,29UM,12/02/2020,1174352,9256.11,MATRIX SCM LTD,2227962                  ,HUMAN RESOURCES,Agency/Contract Staff,Internal Trading Cost Centres
Swale Borough Council,29UM,12/02/2020,1174318,620.00,MAXWELL AMENITY LIMITED,02152566                 ,LEISURE & OPEN SPACES,Equipment Purchase,Cultural and Related Services
Swale Borough Council,29UM,12/02/2020,1174339,2123.00,MAYLOW CONSTRUCTION LTD,                         ,LEISURE & OPEN SPACES,Construction,Not used in this Structure
Swale Borough Council,29UM,12/02/2020,1173243,1300.00,MOBILE MINI,2862423                  ,DEMOCRATIC & ELECTORAL SERVICES,Hire Of Premises,Ledger/Suspense Codes
Swale Borough Council,29UM,12/02/2020,1173968,35000.00,REDACTED PERSONAL INFORMATION,                         ,PLANNING SERVICES,Legal Fees,Internal Trading Cost Centres
Swale Borough Council,29UM,12/02/2020,1173968,7000.00,REDACTED PERSONAL INFORMATION,                         ,PLANNING SERVICES,Legal Fees,Internal Trading Cost Centres
Swale Borough Council,29UM,12/02/2020,1174247,259.00,NEWNHAM PARISH COUNCIL,                         ,ECONOMY & COMMUNITIES,Grants & Subscriptions,Central Services to the Public
Swale Borough Council,29UM,12/02/2020,1174260,1591.08,NORWICH ALUMINIUM LTD,09395314                 ,MULTISTOREY CAR PARK,Insurance Work Fixed Plant,Highway and Transport Services
Swale Borough Council,29UM,12/02/2020,1174243,700.00,OASIS ACADEMY ISLE OF SHEPPEY,                         ,ECONOMY & COMMUNITIES,Grants & Subscriptions,Central Services to the Public
Swale Borough Council,29UM,12/02/2020,1174250,648.60,OLD BORDENIANS HOCKEY CLUB,                         ,TOURISM & SPORTS DEVELOPMENT,Grants & Subscriptions,Cultural and Related Services
Swale Borough Council,29UM,12/02/2020,1174220,855.00,RAINBOW WATER SERVICES LTD,2735065                  ,LEISURE & OPEN SPACES,Service Contracts,Environmental and Regulatory Services
Swale Borough Council,29UM,12/02/2020,1174404,300.00,RICS BUSINESS SERVICES LTD,                         ,PROPERTY SERVICES,"Books, Journals & e - resources",Internal Trading Cost Centres
Swale Borough Council,29UM,12/02/2020,1174244,300.00,ROTARY CLUB S'BOURNE INVICTA TRUST FUND,                         ,ECONOMY & COMMUNITIES,Grants & Subscriptions,Central Services to the Public
Swale Borough Council,29UM,12/02/2020,1174155,291.48,ROYAL MAIL GROUP LTD,4138203                  ,REVENUE SERVICES,Postage,Central Services to the Public
Swale Borough Council,29UM,12/02/2020,1174209,375.00,RURAL PLANNING LTD,4426249                  ,PLANNING SERVICES,Fees and Services,Planning and Development Services
Swale Borough Council,29UM,12/02/2020,1173976,17510.83,SERCO LEISURE OPERATING LIMITED,04687478                 ,LEISURE & OPEN SPACES,Contracts,Cultural and Related Services
Swale Borough Council,29UM,12/02/2020,1174224,17510.83,SERCO LEISURE OPERATING LIMITED,04687478                 ,LEISURE & OPEN SPACES,Contracts,Cultural and Related Services
Swale Borough Council,29UM,12/02/2020,1174264,-35021.66,SERCO LEISURE OPERATING LIMITED,04687478                 ,LEISURE & OPEN SPACES,Contracts,Cultural and Related Services
Swale Borough Council,29UM,12/02/2020,1174268,52532.49,SERCO LEISURE OPERATING LIMITED,04687478                 ,LEISURE & OPEN SPACES,Contracts,Cultural and Related Services
Swale Borough Council,29UM,12/02/2020,1174254,475.00,SHEPPEY HERITAGE TRUST LTD,                         ,ECONOMY & COMMUNITIES,Grants & Subscriptions,Central Services to the Public
Swale Borough Council,29UM,12/02/2020,1174343,560.00,SITTINGBOURNE & MILTON SEA CADET UNIT,                         ,ECONOMY & COMMUNITIES,Grants & Subscriptions,Central Services to the Public
Swale Borough Council,29UM,12/02/2020,1174415,700.00,SITTINGBOURNE CARNIVAL ASSOCIATION,                         ,ECONOMY & COMMUNITIES,Grants & Subscriptions,Central Services to the Public
Swale Borough Council,29UM,12/02/2020,1174324,21.11,SODEXO MOTIVATION SOLUTIONS UK LTD,2680629                  ,HUMAN RESOURCES,Fees and Services,Corporate & Democratic Core
Swale Borough Council,29UM,12/02/2020,1174435,11408.01,SOUTH EAST BUILDING CO LTD,1786838                  ,HOUSING SERVICES,Housing Renovation Grants,Not used in this Structure
Swale Borough Council,29UM,12/02/2020,1174405,586.01,SOUTHERN COMMUNICATIONS LTD,1328040                  ,MKS ICT,Telephone,Corporate & Democratic Core
Swale Borough Council,29UM,12/02/2020,1173836,18566.80,SQUARE GAIN LTD,09583012                 ,PLANNING SERVICES,Fees and Services,Planning and Development Services
Swale Borough Council,29UM,12/02/2020,1174242,400.00,SQUARECUBE ARTISANS,                         ,ECONOMY & COMMUNITIES,Grants & Subscriptions,Central Services to the Public
Swale Borough Council,29UM,12/02/2020,1174274,650.00,SUNNY BANK PRIMARY SCHOOL,                         ,ECONOMY & COMMUNITIES,Grants & Subscriptions,Central Services to the Public
Swale Borough Council,29UM,12/02/2020,1174231,11969.50,SWALE COMMUNITY LEISURE LIMITED,31132R                   ,LEISURE & OPEN SPACES,Procurement Contracts Only,Cultural and Related Services
Swale Borough Council,29UM,12/02/2020,1174308,400.00,SWALE CVS,                         ,ECONOMY & COMMUNITIES,Grants & Subscriptions,Central Services to the Public
Swale Borough Council,29UM,12/02/2020,1174414,250.00,SWAMPYS ANIMAL RESCUE,                         ,ECONOMY & COMMUNITIES,Grants & Subscriptions,Central Services to the Public
Swale Borough Council,29UM,12/02/2020,1174257,1000.00,TEAM PHOENIX FOUNDATION,                         ,TOURISM & SPORTS DEVELOPMENT,Grants & Subscriptions,Cultural and Related Services
Swale Borough Council,29UM,12/02/2020,1174477,650.00,THE HARMONY THERAPY TRUST,                         ,ECONOMY & COMMUNITIES,Grants & Subscriptions,Central Services to the Public
Swale Borough Council,29UM,12/02/2020,4500725,-650.00,THE HARMONY THERAPY TRUST,                         ,ECONOMY & COMMUNITIES,Grants & Subscriptions,Central Services to the Public
Swale Borough Council,29UM,12/02/2020,1174271,1739.00,THE OYSTER PARTNERSHIP,05020374                 ,PLANNING SERVICES,Agency/Contract Staff,Internal Trading Cost Centres
Swale Borough Council,29UM,12/02/2020,1174272,1650.00,THE OYSTER PARTNERSHIP,05020374                 ,PLANNING SERVICES,Agency/Contract Staff,Planning and Development Services
Swale Borough Council,29UM,12/02/2020,1174230,132.50,THOMSON REUTERS,1679046                  ,DEMOCRATIC & ELECTORAL SERVICES,"Books, Journals & e - resources",Central Services to the Public
Swale Borough Council,29UM,12/02/2020,1174230,132.50,THOMSON REUTERS,1679046                  ,DEMOCRATIC & ELECTORAL SERVICES,"Books, Journals & e - resources",Central Services to the Public
Swale Borough Council,29UM,12/02/2020,1174336,596.00,THREE TOWNS OFFICE EQUIPMENT LTD,                         ,COMMISSIONING & CUSTOMER CONTACT,Furniture,Internal Trading Cost Centres
Swale Borough Council,29UM,12/02/2020,1174369,325.00,TIKSPAC UK LTD,09238130                 ,SERVICE DELIVERY,Maintenance - Grounds,Cultural and Related Services
Swale Borough Council,29UM,12/02/2020,1174298,764.70,VANITORIALS LIMITED,3952938                  ,PROPERTY SERVICES,Cleaning Materials,Internal Trading Cost Centres
Swale Borough Council,29UM,12/02/2020,1174319,924.00,VIVID RESOURCING LIMITED,06459262                 ,PLANNING SERVICES,Agency/Contract Staff,Internal Trading Cost Centres
Swale Borough Council,29UM,12/02/2020,1174227,23.84,VR SANI-CO LTD,3588359                  ,LEISURE & OPEN SPACES,Service Contracts,Cultural and Related Services
Swale Borough Council,29UM,12/02/2020,1174227,12.50,VR SANI-CO LTD,3588359                  ,LEISURE & OPEN SPACES,Service Contracts,Cultural and Related Services
Swale Borough Council,29UM,12/02/2020,1174227,28.17,VR SANI-CO LTD,3588359                  ,LEISURE & OPEN SPACES,Service Contracts,Cultural and Related Services
Swale Borough Council,29UM,12/02/2020,1174227,9.75,VR SANI-CO LTD,3588359                  ,LEISURE & OPEN SPACES,Service Contracts,Cultural and Related Services
Swale Borough Council,29UM,12/02/2020,1174227,16.32,VR SANI-CO LTD,3588359                  ,LEISURE & OPEN SPACES,Service Contracts,Cultural and Related Services
Swale Borough Council,29UM,12/02/2020,1174227,35.76,VR SANI-CO LTD,3588359                  ,PROPERTY SERVICES,Service Contracts,Cultural and Related Services
Swale Borough Council,29UM,12/02/2020,1174227,5.96,VR SANI-CO LTD,3588359                  ,COMMUNITY SAFETY,Service Contracts,Cultural and Related Services
Swale Borough Council,29UM,12/02/2020,1174227,214.56,VR SANI-CO LTD,3588359                  ,PROPERTY SERVICES,Service Contracts,Corporate & Democratic Core
Swale Borough Council,29UM,12/02/2020,1174227,50.00,VR SANI-CO LTD,3588359                  ,PROPERTY SERVICES,Service Contracts,Corporate & Democratic Core
Swale Borough Council,29UM,12/02/2020,1174227,14.08,VR SANI-CO LTD,3588359                  ,PROPERTY SERVICES,Service Contracts,Corporate & Democratic Core
Swale Borough Council,29UM,12/02/2020,1174227,26.00,VR SANI-CO LTD,3588359                  ,PROPERTY SERVICES,Service Contracts,Corporate & Democratic Core
Swale Borough Council,29UM,12/02/2020,1174362,337.99,W J ODDS LTD,                         ,LEISURE & OPEN SPACES,Equipment Purchase,Cultural and Related Services
Swale Borough Council,29UM,12/02/2020,1174273,1550.00,WEALD WOODSCAPES LTD,8028446                  ,LEISURE & OPEN SPACES,Maintenance - Grounds,Cultural and Related Services
Swale Borough Council,29UM,12/02/2020,1174436,7576.46,WILLOW TREE HOME SOLUTIONS LTD,                         ,HOUSING SERVICES,Housing Renovation Grants,Not used in this Structure
Swale Borough Council,29UM,12/02/2020,1174466,2215.16,WORLDPAY (DT),07316500                 ,REVENUE SERVICES,Commission Paid,Central Services to the Public
Swale Borough Council,29UM,12/02/2020,1174466,104.00,WORLDPAY (DT),07316500                 ,REVENUE SERVICES,Commission Paid,Central Services to the Public
Swale Borough Council,29UM,12/02/2020,1174466,13.00,WORLDPAY (DT),07316500                 ,REVENUE SERVICES,Commission Paid,Housing
Swale Borough Council,29UM,12/02/2020,1174466,273.00,WORLDPAY (DT),07316500                 ,EXCHEQUER,Commission Paid,Internal Trading Cost Centres
Swale Borough Council,29UM,12/02/2020,1174466,7.28,WORLDPAY (DT),07316500                 ,EXCHEQUER,Commission Paid,Internal Trading Cost Centres
Swale Borough Council,29UM,12/02/2020,1174467,2244.85,WORLDPAY (DT),07316500                 ,REVENUE SERVICES,Commission Paid,Central Services to the Public
Swale Borough Council,29UM,12/02/2020,1174467,68.42,WORLDPAY (DT),07316500                 ,REVENUE SERVICES,Commission Paid,Central Services to the Public
Swale Borough Council,29UM,12/02/2020,1174467,424.23,WORLDPAY (DT),07316500                 ,EXCHEQUER,Commission Paid,Internal Trading Cost Centres
Swale Borough Council,29UM,12/02/2020,1174467,2.57,WORLDPAY (DT),07316500                 ,EXCHEQUER,Commission Paid,Internal Trading Cost Centres
Swale Borough Council,29UM,12/02/2020,1174168,384.99,WYBONE LTD,952455                   ,LEISURE & OPEN SPACES,Maintenance - Grounds,Cultural and Related Services
Swale Borough Council,29UM,19/02/2020,1174618,7248.82,ACORN MAINTENANCE SERVICES,3546898                  ,HOUSING SERVICES,Housing Renovation Grants,Not used in this Structure
Swale Borough Council,29UM,19/02/2020,1173965,1680.00,BLOOM PROCUREMENT SERVICES LTD,08045123                 ,FINANCIAL SERVICES,STC - Capitalised Fees And Charges,Not used in this Structure
Swale Borough Council,29UM,19/02/2020,1173965,720.00,BLOOM PROCUREMENT SERVICES LTD,08045123                 ,FINANCIAL SERVICES,STC - Capitalised Fees And Charges,Not used in this Structure
Swale Borough Council,29UM,19/02/2020,1174062,366.08,CANON UK LTD,1264300                  ,PROPERTY SERVICES,Paper,Internal Trading Cost Centres
Swale Borough Council,29UM,19/02/2020,1174383,6150.00,CIPFA BUSINESS LTD,2376684                  ,FINANCIAL SERVICES,Payments in Year,Ledger/Suspense Codes
Swale Borough Council,29UM,19/02/2020,1174597,665.72,CREED OUTDOOR LEARNING,                         ,ECONOMY & COMMUNITIES,Grants & Subscriptions,Central Services to the Public
Swale Borough Council,29UM,19/02/2020,1174603,250.00,CREED OUTDOOR LEARNING,                         ,ECONOMY & COMMUNITIES,Grants & Subscriptions,Central Services to the Public
Swale Borough Council,29UM,19/02/2020,1174479,500.00,EASTLING PRIMARY SCHOOL,                         ,ECONOMY & COMMUNITIES,Grants & Subscriptions,Central Services to the Public
Swale Borough Council,29UM,19/02/2020,1174526,250.00,FULSTON MANOR SCHOOL,                         ,TOURISM & SPORTS DEVELOPMENT,Grants & Subscriptions,Cultural and Related Services
Swale Borough Council,29UM,19/02/2020,1174157,350.00,HIGHER ELEVATION LTD,4078005                  ,HOUSING SERVICES,Staying Put small repairs (contractors),Housing
Swale Borough Council,29UM,19/02/2020,1174616,289.50,HIGHER ELEVATION LTD,4078005                  ,HOUSING SERVICES,Housing Renovation Grants,Not used in this Structure
Swale Borough Council,29UM,19/02/2020,1174617,2277.00,HIGHER ELEVATION LTD,4078005                  ,HOUSING SERVICES,Housing Renovation Grants,Not used in this Structure
Swale Borough Council,29UM,19/02/2020,1174487,278.00,HOUND ENVELOPES LTD,4802560                  ,PROPERTY SERVICES,Paper,Internal Trading Cost Centres
Swale Borough Council,29UM,19/02/2020,1174513,463.45,HYDRO CLEANSING LTD,03916897                 ,MULTISTOREY CAR PARK,Building Maintenance - Reactive,Highway and Transport Services
Swale Borough Council,29UM,19/02/2020,1174391,369.90,IKEN BUSINESS LTD,2776536                  ,MKS LEGAL SERVICES,Computer Equipment & Materials,Internal Trading Cost Centres
Swale Borough Council,29UM,19/02/2020,1174488,2163.06,ILK SECURITY LTD,7780757                  ,PROPERTY SERVICES,Fees and Services,Corporate & Democratic Core
Swale Borough Council,29UM,19/02/2020,1174529,953.49,KENT COUNTY COUNCIL (KCS),                         ,MULTISTOREY CAR PARK,Electricity,Highway and Transport Services
Swale Borough Council,29UM,19/02/2020,1174532,4247.25,KENT COUNTY COUNCIL (KCS),                         ,PROPERTY SERVICES,Electricity,Corporate & Democratic Core
Swale Borough Council,29UM,19/02/2020,1174562,275.09,KENT COUNTY COUNCIL (KCS),                         ,MKS ENVIRONMENTAL SERVICES,Electricity,Environmental and Regulatory Services
Swale Borough Council,29UM,19/02/2020,1174563,3446.42,KENT COUNTY COUNCIL (KCS),                         ,PROPERTY SERVICES,Gas,Corporate & Democratic Core
Swale Borough Council,29UM,19/02/2020,1174286,275.00,LEMAR LIMITED,04350292                 ,SERVICE DELIVERY,Private Contractors - CIS,Highway and Transport Services
Swale Borough Council,29UM,19/02/2020,1174535,490.00,LEMAR LIMITED,04350292                 ,SERVICE DELIVERY,Private Contractors - CIS,Highway and Transport Services
Swale Borough Council,29UM,19/02/2020,1174535,300.00,LEMAR LIMITED,04350292                 ,SERVICE DELIVERY,Private Contractors - CIS,Highway and Transport Services
Swale Borough Council,29UM,19/02/2020,1174536,564.00,LEMAR LIMITED,04350292                 ,LEISURE & OPEN SPACES,Maintenance - Grounds,Cultural and Related Services
Swale Borough Council,29UM,19/02/2020,1174536,300.00,LEMAR LIMITED,04350292                 ,LEISURE & OPEN SPACES,Maintenance - Grounds,Cultural and Related Services
Swale Borough Council,29UM,19/02/2020,1174537,300.00,LEMAR LIMITED,04350292                 ,SERVICE DELIVERY,Private Contractors - CIS,Highway and Transport Services
Swale Borough Council,29UM,19/02/2020,1174537,144.00,LEMAR LIMITED,04350292                 ,SERVICE DELIVERY,Private Contractors - CIS,Highway and Transport Services
Swale Borough Council,29UM,19/02/2020,1174542,300.00,LEMAR LIMITED,04350292                 ,SERVICE DELIVERY,Private Contractors - CIS,Highway and Transport Services
Swale Borough Council,29UM,19/02/2020,1174542,95.00,LEMAR LIMITED,04350292                 ,SERVICE DELIVERY,Private Contractors - CIS,Highway and Transport Services
Swale Borough Council,29UM,19/02/2020,1174499,900.00,MAIDSTONE BOROUGH COUNCIL,                         ,REVENUE SERVICES,Computer Equipment & Materials,Housing
Swale Borough Council,29UM,19/02/2020,1174520,16702.22,MAIDSTONE BOROUGH COUNCIL,                         ,CONTRACTS,Equipment Purchase,Environmental and Regulatory Services
Swale Borough Council,29UM,19/02/2020,1174528,497.90,METRIC GROUP LTD,2560839                  ,CAR PARKS,Maintenance - Grounds,Highway and Transport Services
Swale Borough Council,29UM,19/02/2020,1174528,50.00,METRIC GROUP LTD,2560839                  ,CAR PARKS,Maintenance - Grounds,Highway and Transport Services
Swale Borough Council,29UM,19/02/2020,1174486,600.00,MILLSONS VENDING LIMITED,4676810                  ,PROPERTY SERVICES,Coffee Machines - Rental,Corporate & Democratic Core
Swale Borough Council,29UM,19/02/2020,1174510,327.05,NPOWER,                         ,CAR PARKS,Electricity,Highway and Transport Services
Swale Borough Council,29UM,19/02/2020,1174516,304.70,NPOWER,                         ,LEISURE & OPEN SPACES,Electricity,Cultural and Related Services
Swale Borough Council,29UM,19/02/2020,1174426,400.00,PARKRUN LIMITED,07289574                 ,ECONOMY & COMMUNITIES,Grants & Subscriptions,Central Services to the Public
Swale Borough Council,29UM,19/02/2020,1174599,1000.00,QUEENBOROUGH BOWLS CLUB,                         ,TOURISM & SPORTS DEVELOPMENT,Grants & Subscriptions,Cultural and Related Services
Swale Borough Council,29UM,19/02/2020,1174452,1368.32,ROYAL MAIL GROUP LTD,4138203                  ,PROPERTY SERVICES,Postage,Holding Codes
Swale Borough Council,29UM,19/02/2020,1173852,4356.67,SHARP BUSINESS SYSTEMS UK,2136901                  ,PROPERTY SERVICES,Equipment Maintenance,Internal Trading Cost Centres
Swale Borough Council,29UM,19/02/2020,1173853,683.61,SHARP BUSINESS SYSTEMS UK,2136901                  ,PROPERTY SERVICES,Equipment Maintenance,Internal Trading Cost Centres
Swale Borough Council,29UM,19/02/2020,1174490,1150.00,SHEPPEY MATTERS,3946296                  ,ENVIRONMENTAL RESPONSE TEAM,Grants & Subscriptions,Planning and Development Services
Swale Borough Council,29UM,19/02/2020,1174475,300.00,SHEPPEY WARRIORS WALKING FOOTBALL,                         ,TOURISM & SPORTS DEVELOPMENT,Grants & Subscriptions,Cultural and Related Services
Swale Borough Council,29UM,19/02/2020,1174359,468.78,SIEMENS FINANCIAL SERVICES LIMITED,646166                   ,PROPERTY SERVICES,Coffee Machines - Rental,Corporate & Democratic Core
Swale Borough Council,29UM,19/02/2020,1174640,7506.00,SPIRIT OF SITTINGBOURNE LLP,OC377168                 ,FINANCIAL SERVICES,STC - Capitalised Fees And Charges,Not used in this Structure
Swale Borough Council,29UM,19/02/2020,1174641,352399.95,SPIRIT OF SITTINGBOURNE LLP,OC377168                 ,FINANCIAL SERVICES,STC - Capitalised Fees And Charges,Not used in this Structure
Swale Borough Council,29UM,19/02/2020,1174301,7200.00,SQUARE GAIN LTD,09583012                 ,PLANNING SERVICES,Special Projects Fund Expenditure - Non CIS,Ledger/Suspense Codes
Swale Borough Council,29UM,19/02/2020,1174301,183.60,SQUARE GAIN LTD,09583012                 ,PLANNING SERVICES,Fees and Services,Planning and Development Services
Swale Borough Council,29UM,19/02/2020,1174301,44.00,SQUARE GAIN LTD,09583012                 ,PLANNING SERVICES,Fees and Services,Planning and Development Services
Swale Borough Council,29UM,19/02/2020,1174503,550.00,THE FREEDOM CENTRE,                         ,ECONOMY & COMMUNITIES,Grants & Subscriptions,Central Services to the Public
Swale Borough Council,29UM,19/02/2020,1174055,2280.00,THE KEY SAFE COMPANY,3294833                  ,HOUSING SERVICES,Staying Put - Materials,Housing
Swale Borough Council,29UM,19/02/2020,1174481,1694.00,THE OYSTER PARTNERSHIP,05020374                 ,PLANNING SERVICES,Agency/Contract Staff,Planning and Development Services
Swale Borough Council,29UM,19/02/2020,1174482,1739.00,THE OYSTER PARTNERSHIP,05020374                 ,PLANNING SERVICES,Agency/Contract Staff,Internal Trading Cost Centres
Swale Borough Council,29UM,19/02/2020,1174476,450.00,THE RAMP PEOPLE,8115543                  ,HOUSING SERVICES,Staying Put - Materials,Housing
Swale Borough Council,29UM,19/02/2020,1174338,298.00,THREE TOWNS OFFICE EQUIPMENT LTD,                         ,HOUSING SERVICES,Furniture,Housing
Swale Borough Council,29UM,19/02/2020,1174375,2226.58,TOTAL SECURITY SERVICES LTD (TSS),02426982                 ,PROPERTY SERVICES,Fees and Services,Corporate & Democratic Core
Swale Borough Council,29UM,19/02/2020,1174429,350.00,WHITE HORSE FOOTBALL CLUB,                         ,ECONOMY & COMMUNITIES,Grants & Subscriptions,Central Services to the Public
Swale Borough Council,29UM,19/02/2020,1174416,1045.00,WILLOW PUMPS LTD,2762063                  ,LEISURE & OPEN SPACES,Maintenance - Grounds,Cultural and Related Services
Swale Borough Council,29UM,19/02/2020,1174061,367.00,WILLOW TREE HOME SOLUTIONS LTD,                         ,HOUSING SERVICES,Staying Put small repairs (contractors),Housing
Swale Borough Council,29UM,19/02/2020,1174064,450.00,WILLOW TREE HOME SOLUTIONS LTD,                         ,HOUSING SERVICES,Staying Put small repairs (contractors),Housing
Swale Borough Council,29UM,19/02/2020,1174316,555.00,WILLOW TREE HOME SOLUTIONS LTD,                         ,HOUSING SERVICES,Staying Put small repairs (contractors),Housing
Swale Borough Council,29UM,19/02/2020,1174317,305.00,WILLOW TREE HOME SOLUTIONS LTD,                         ,HOUSING SERVICES,Staying Put small repairs (contractors),Housing
Swale Borough Council,29UM,19/02/2020,1174522,640.00,WILLOW TREE HOME SOLUTIONS LTD,                         ,HOUSING SERVICES,Staying Put small repairs (contractors),Housing
Swale Borough Council,29UM,19/02/2020,1174523,480.00,WILLOW TREE HOME SOLUTIONS LTD,                         ,HOUSING SERVICES,Staying Put small repairs (contractors),Housing
Swale Borough Council,29UM,26/02/2020,1174565,41.28,ALLSTAR BUSINESS SOLUTIONS LTD - (DT),1073098                  ,DEMOCRATIC & ELECTORAL SERVICES,Petrol/Derv & Oil,Corporate & Democratic Core
Swale Borough Council,29UM,26/02/2020,1174565,139.37,ALLSTAR BUSINESS SOLUTIONS LTD - (DT),1073098                  ,SERVICE DELIVERY,Petrol/Derv & Oil,Cultural and Related Services
Swale Borough Council,29UM,26/02/2020,1174565,218.26,ALLSTAR BUSINESS SOLUTIONS LTD - (DT),1073098                  ,ENVIRONMENTAL RESPONSE TEAM,Fuel For Contract Vehicles,Internal Trading Cost Centres
Swale Borough Council,29UM,26/02/2020,1174565,145.90,ALLSTAR BUSINESS SOLUTIONS LTD - (DT),1073098                  ,LEISURE & OPEN SPACES,Fuel For Contract Vehicles,Cultural and Related Services
Swale Borough Council,29UM,26/02/2020,1174754,100.00,AYS,                         ,LEISURE & OPEN SPACES,Maintenance - Grounds,Environmental and Regulatory Services
Swale Borough Council,29UM,26/02/2020,1174754,180.00,AYS,                         ,LEISURE & OPEN SPACES,Maintenance - Grounds,Environmental and Regulatory Services
Swale Borough Council,29UM,26/02/2020,1174576,840.00,BATES JPW ADVERTISING LTD,784540                   ,LEISURE & OPEN SPACES,Recruitment Adverts - Staff,Internal Trading Cost Centres
Swale Borough Council,29UM,26/02/2020,1174543,275.26,BRITISH GAS TRADING LTD,                         ,COMMUNITY SAFETY,Electricity,Cultural and Related Services
Swale Borough Council,29UM,26/02/2020,1174741,255.48,CANON UK LTD,1264300                  ,PROPERTY SERVICES,Paper,Internal Trading Cost Centres
Swale Borough Council,29UM,26/02/2020,1174596,1200.00,CHILDREN AND FAMILIES LTD,                         ,ECONOMY & COMMUNITIES,Grants & Subscriptions,Central Services to the Public
Swale Borough Council,29UM,26/02/2020,1174667,6327.50,COBALT TELEPHONE TECHNOLOGIES LIMITED,03151938                 ,CAR PARKS,Fees - Licence,Highway and Transport Services
Swale Borough Council,29UM,26/02/2020,1174785,7848.18,COLDWELL CONSTRUCTION LTD,4814340                  ,HOUSING SERVICES,Housing Renovation Grants,Not used in this Structure
Swale Borough Council,29UM,26/02/2020,1174586,8000.00,COOMBS (CANTERBURY) Ltd.,2040829                  ,LEISURE & OPEN SPACES,Maintenance - Grounds,Cultural and Related Services
Swale Borough Council,29UM,26/02/2020,1174586,1600.00,COOMBS (CANTERBURY) Ltd.,2040829                  ,LEISURE & OPEN SPACES,Maintenance - Grounds,Cultural and Related Services
Swale Borough Council,29UM,26/02/2020,1174664,191096.82,COOMBS (CANTERBURY) Ltd.,2040829                  ,LEISURE & OPEN SPACES,Capital Constuction - CIS Works,Not used in this Structure
Swale Borough Council,29UM,26/02/2020,1174664,38219.36,COOMBS (CANTERBURY) Ltd.,2040829                  ,LEISURE & OPEN SPACES,Capital Constuction - CIS Works,Not used in this Structure
Swale Borough Council,29UM,26/02/2020,1174787,2400.00,DOLPHIN STAIRLIFTS (KENT),04181846                 ,HOUSING SERVICES,Housing Renovation Grants,Not used in this Structure
Swale Borough Council,29UM,26/02/2020,1174684,2300.00,EXCELSIOR SAFEGUARDING CIC,10858996                 ,COMMUNITY SAFETY,Fees and Services,Planning and Development Services
Swale Borough Council,29UM,26/02/2020,1174739,275.00,FIRE & SECURITY CONSULTANCY LTD,5946022                  ,PROPERTY SERVICES,Non-Planned Building Maintenance,Corporate & Democratic Core
Swale Borough Council,29UM,26/02/2020,1174749,5278.00,FOXLEYS LTD,3385956                  ,FINANCIAL SERVICES,STC - Capital Constuction - CIS Works,Not used in this Structure
Swale Borough Council,29UM,26/02/2020,1174784,15012.00,HUBBARD & HOUGHTON CONSTRUCTION LTD,                         ,HOUSING SERVICES,Housing Renovation Grants,Not used in this Structure
Swale Borough Council,29UM,26/02/2020,1174655,14993.82,IDOX SOFTWARE LTD,06706798                 ,DEMOCRATIC & ELECTORAL SERVICES,Computer Equipment & Materials,Central Services to the Public
Swale Borough Council,29UM,26/02/2020,1174561,2000.00,INFORM CPI LTD,                         ,REVENUE SERVICES,NNDR Additional Rateable Values,Central Services to the Public
Swale Borough Council,29UM,26/02/2020,1174663,5000.00,INFORM CPI LTD,                         ,REVENUE SERVICES,NNDR Additional Rateable Values,Central Services to the Public
Swale Borough Council,29UM,26/02/2020,1174659,3354.00,KENT WILDLIFE TRUST,239992                   ,PLANNING SERVICES,Fees and Services,Planning and Development Services
Swale Borough Council,29UM,26/02/2020,1174582,135.42,KIRKMAN & JOURDAIN LTD,01766240                 ,LEISURE & OPEN SPACES,Non-Planned Building Maintenance,Cultural and Related Services
Swale Borough Council,29UM,26/02/2020,1174582,27.00,KIRKMAN & JOURDAIN LTD,01766240                 ,LEISURE & OPEN SPACES,Non-Planned Building Maintenance,Cultural and Related Services
Swale Borough Council,29UM,26/02/2020,1174582,287.82,KIRKMAN & JOURDAIN LTD,01766240                 ,PROPERTY SERVICES,Non-Planned Building Maintenance,Trading Undertaking
Swale Borough Council,29UM,26/02/2020,1174582,137.50,KIRKMAN & JOURDAIN LTD,01766240                 ,HOUSING SERVICES,General Maintenance,Housing
Swale Borough Council,29UM,26/02/2020,1174582,284.80,KIRKMAN & JOURDAIN LTD,01766240                 ,PROPERTY SERVICES,Non-Planned Building Maintenance,Corporate & Democratic Core
Swale Borough Council,29UM,26/02/2020,1174582,138.49,KIRKMAN & JOURDAIN LTD,01766240                 ,PROPERTY SERVICES,Non-Planned Building Maintenance,Corporate & Democratic Core
Swale Borough Council,29UM,26/02/2020,1174582,132.90,KIRKMAN & JOURDAIN LTD,01766240                 ,PROPERTY SERVICES,Non-Planned Building Maintenance,Corporate & Democratic Core
Swale Borough Council,29UM,26/02/2020,1174582,54.00,KIRKMAN & JOURDAIN LTD,01766240                 ,PROPERTY SERVICES,Non-Planned Building Maintenance,Corporate & Democratic Core
Swale Borough Council,29UM,26/02/2020,1174582,27.50,KIRKMAN & JOURDAIN LTD,01766240                 ,PROPERTY SERVICES,Non-Planned Building Maintenance,Corporate & Democratic Core
Swale Borough Council,29UM,26/02/2020,1174582,71.05,KIRKMAN & JOURDAIN LTD,01766240                 ,PROPERTY SERVICES,Non-Planned Building Maintenance,Corporate & Democratic Core
Swale Borough Council,29UM,26/02/2020,1174582,65.25,KIRKMAN & JOURDAIN LTD,01766240                 ,PROPERTY SERVICES,Non-Planned Building Maintenance,Corporate & Democratic Core
Swale Borough Council,29UM,26/02/2020,1174582,790.38,KIRKMAN & JOURDAIN LTD,01766240                 ,TOURISM & SPORTS DEVELOPMENT,Non-Planned Building Maintenance,Cultural and Related Services
Swale Borough Council,29UM,26/02/2020,1174582,394.55,KIRKMAN & JOURDAIN LTD,01766240                 ,LEISURE & OPEN SPACES,Non-Planned Building Maintenance,Cultural and Related Services
Swale Borough Council,29UM,26/02/2020,1174582,113.70,KIRKMAN & JOURDAIN LTD,01766240                 ,CONTRACTS,Non-Planned Building Maintenance,Environmental and Regulatory Services
Swale Borough Council,29UM,26/02/2020,1174582,27.00,KIRKMAN & JOURDAIN LTD,01766240                 ,CONTRACTS,Non-Planned Building Maintenance,Environmental and Regulatory Services
Swale Borough Council,29UM,26/02/2020,1174582,172.52,KIRKMAN & JOURDAIN LTD,01766240                 ,CONTRACTS,Non-Planned Building Maintenance,Environmental and Regulatory Services
Swale Borough Council,29UM,26/02/2020,1174582,350.37,KIRKMAN & JOURDAIN LTD,01766240                 ,CONTRACTS,Non-Planned Building Maintenance,Environmental and Regulatory Services
Swale Borough Council,29UM,26/02/2020,1174582,143.83,KIRKMAN & JOURDAIN LTD,01766240                 ,CONTRACTS,Non-Planned Building Maintenance,Environmental and Regulatory Services
Swale Borough Council,29UM,26/02/2020,1174582,54.00,KIRKMAN & JOURDAIN LTD,01766240                 ,CONTRACTS,Non-Planned Building Maintenance,Environmental and Regulatory Services
Swale Borough Council,29UM,26/02/2020,1174582,82.50,KIRKMAN & JOURDAIN LTD,01766240                 ,LEISURE & OPEN SPACES,Non-Planned Building Maintenance,Cultural and Related Services
Swale Borough Council,29UM,26/02/2020,1174583,295.60,KIRKMAN & JOURDAIN LTD,01766240                 ,DEMOCRATIC & ELECTORAL SERVICES,Non-Planned Building Maintenance,Ledger/Suspense Codes
Swale Borough Council,29UM,26/02/2020,1174583,78.09,KIRKMAN & JOURDAIN LTD,01766240                 ,DEMOCRATIC & ELECTORAL SERVICES,Non-Planned Building Maintenance,Ledger/Suspense Codes
Swale Borough Council,29UM,26/02/2020,1174679,1240.00,LAND & WATER SERVICES LTD,02776439                 ,LEISURE & OPEN SPACES,Maintenance - Grounds,Cultural and Related Services
Swale Borough Council,29UM,26/02/2020,1174653,2065.00,LAVAT CONSULTING LTD.,4810070                  ,FINANCIAL SERVICES,Payments in Year,Ledger/Suspense Codes
Swale Borough Council,29UM,26/02/2020,1174538,300.00,LEMAR LIMITED,04350292                 ,CAR PARKS,Maintenance - Grounds,Highway and Transport Services
Swale Borough Council,29UM,26/02/2020,1174538,360.00,LEMAR LIMITED,04350292                 ,CAR PARKS,Maintenance - Grounds,Highway and Transport Services
Swale Borough Council,29UM,26/02/2020,1174539,300.00,LEMAR LIMITED,04350292                 ,CAR PARKS,Maintenance - Grounds,Highway and Transport Services
Swale Borough Council,29UM,26/02/2020,1174539,95.00,LEMAR LIMITED,04350292                 ,CAR PARKS,Maintenance - Grounds,Highway and Transport Services
Swale Borough Council,29UM,26/02/2020,1174540,500.00,LEMAR LIMITED,04350292                 ,CAR PARKS,Maintenance - Grounds,Highway and Transport Services
Swale Borough Council,29UM,26/02/2020,1174540,495.00,LEMAR LIMITED,04350292                 ,CAR PARKS,Maintenance - Grounds,Highway and Transport Services
Swale Borough Council,29UM,26/02/2020,1174327,275.23,LEX AUTOLEASE LTD,1090741                  ,HOUSING SERVICES,Hire & Leases,Housing
Swale Borough Council,29UM,26/02/2020,1174566,814.46,LLOYDS BANK - (DT),                         ,FINANCIAL SERVICES,Bank Charges,Corporate & Democratic Core
Swale Borough Council,29UM,26/02/2020,1174519,10479.91,MAIDSTONE BOROUGH COUNCIL,                         ,CONTRACTS,Private Contractors,Environmental and Regulatory Services
Swale Borough Council,29UM,26/02/2020,1174521,32.14,MAIDSTONE BOROUGH COUNCIL,                         ,TOURISM & SPORTS DEVELOPMENT,Computer Equipment & Materials,Internal Trading Cost Centres
Swale Borough Council,29UM,26/02/2020,1174521,2024.32,MAIDSTONE BOROUGH COUNCIL,                         ,MKS ICT,Computer Equipment & Materials,Internal Trading Cost Centres
Swale Borough Council,29UM,26/02/2020,1174521,2400.00,MAIDSTONE BOROUGH COUNCIL,                         ,MKS ICT,Telephone,Corporate & Democratic Core
Swale Borough Council,29UM,26/02/2020,1174521,545.42,MAIDSTONE BOROUGH COUNCIL,                         ,MKS ICT,Equipment Rental,Holding Codes
Swale Borough Council,29UM,26/02/2020,1174687,2334.40,MAIDSTONE BOROUGH COUNCIL,                         ,CONTRACTS,"Clearance Of Waste,Fly Tipping",Environmental and Regulatory Services
Swale Borough Council,29UM,26/02/2020,1174688,4714.60,MAIDSTONE BOROUGH COUNCIL,                         ,CONTRACTS,Equipment Purchase,Environmental and Regulatory Services
Swale Borough Council,29UM,26/02/2020,1174689,17849.35,MAIDSTONE BOROUGH COUNCIL,                         ,CONTRACTS,Equipment Purchase,Environmental and Regulatory Services
Swale Borough Council,29UM,26/02/2020,1174815,963261.00,MAIDSTONE BOROUGH COUNCIL - DT,                         ,FINANCIAL SERVICES,Tariff to Gvt,Taxation and Non-Specific Grant Income
Swale Borough Council,29UM,26/02/2020,1174502,13031.60,MATRIX SCM LTD,2227962                  ,HUMAN RESOURCES,Agency/Contract Staff,Internal Trading Cost Centres
Swale Borough Council,29UM,26/02/2020,1174683,9914.09,MATRIX SCM LTD,2227962                  ,HUMAN RESOURCES,Agency/Contract Staff,Internal Trading Cost Centres
Swale Borough Council,29UM,26/02/2020,1174587,1042.00,MAYLOW CONSTRUCTION LTD,                         ,LEISURE & OPEN SPACES,Maintenance - Grounds,Cultural and Related Services
Swale Borough Council,29UM,26/02/2020,1174587,6375.00,MAYLOW CONSTRUCTION LTD,                         ,LEISURE & OPEN SPACES,Maintenance - Grounds,Cultural and Related Services
Swale Borough Council,29UM,26/02/2020,1174610,500.00,MINSTER CRICKET CLUB,                         ,ECONOMY & COMMUNITIES,Grants & Subscriptions,Central Services to the Public
Swale Borough Council,29UM,26/02/2020,1174820,2.75,RBS PURCHASING CARD (DT) - SAINSBURY'S ,,DEMOCRATIC & ELECTORAL SERVICES,Catering Provision,Corporate & Democratic Core
Swale Borough Council,29UM,26/02/2020,1174820,4.00,RBS PURCHASING CARD (DT) - M&S,,DEMOCRATIC & ELECTORAL SERVICES,Catering Provision,Corporate & Democratic Core
Swale Borough Council,29UM,26/02/2020,1174821,165.84,RBS PURCHASING CARD (DT) - AO.COM,,PROPERTY SERVICES,Equipment Purchase,Corporate & Democratic Core
Swale Borough Council,29UM,26/02/2020,1174821,38.70,RBS PURCHASING CARD (DT) - MORGANS DIRECT,,PROPERTY SERVICES,Stationery,Corporate & Democratic Core
Swale Borough Council,29UM,26/02/2020,1178422,54.94,RBS PURCHASING CARD (DT) - AMAZON,,HOUSING SERVICES,Homelessness  Prevention Services,Housing
Swale Borough Council,29UM,26/02/2020,1178423,50.00,RBS PURCHASING CARD (DT) - HIGHSTREET VOUCHERS,,CHIEF EXECUTIVE,Prizes/Awards,Corporate & Democratic Core
Swale Borough Council,29UM,26/02/2020,1178423,59.68,RBS PURCHASING CARD (DT) - ASDA,,CHIEF EXECUTIVE,Catering Provision,Corporate & Democratic Core
Swale Borough Council,29UM,27/02/2020,1178424,21.87,RBS PURCHASING CARD (DT) - CUSTOM RUBBER STAMP,,REVENUE SERVICES,Stationery,Housing
Swale Borough Council,29UM,26/02/2020,1174825,-50.00,RBS PURCHASING CARD (DT) - WICKES,                         ,HOUSING SERVICES,Staying Put - Materials,Housing
Swale Borough Council,29UM,26/02/2020,1174825,33.33,RBS PURCHASING CARD (DT) - WILKO,                         ,HOUSING SERVICES,Staying Put - Materials,Housing
Swale Borough Council,29UM,26/02/2020,1174825,118.38,RBS PURCHASING CARD (DT) - AXMINSTER TOOL CENTRE,                         ,HOUSING SERVICES,Staying Put - Materials,Housing
Swale Borough Council,29UM,26/02/2020,1174825,95.80,RBS PURCHASING CARD (DT) - AXMINSTER TOOL CENTRE,                         ,HOUSING SERVICES,Staying Put - Materials,Housing
Swale Borough Council,29UM,26/02/2020,1174825,118.45,RBS PURCHASING CARD (DT) - LTR SUPPLIES,                         ,HOUSING SERVICES,Staying Put - Materials,Housing
Swale Borough Council,29UM,26/02/2020,1174825,4.99,RBS PURCHASING CARD (DT) - AMAZON,                         ,HOUSING SERVICES,Staying Put - Materials,Housing
Swale Borough Council,29UM,26/02/2020,1174825,51.00,RBS PURCHASING CARD (DT) - HOMEBASE,                         ,HOUSING SERVICES,Staying Put - Materials,Housing
Swale Borough Council,29UM,26/02/2020,1174825,8.60,RBS PURCHASING CARD (DT) - HOMEBASE,                         ,HOUSING SERVICES,Staying Put - Materials,Housing
Swale Borough Council,29UM,26/02/2020,1174825,26.25,RBS PURCHASING CARD (DT) - HOMEBASE,                         ,HOUSING SERVICES,Staying Put - Materials,Housing
Swale Borough Council,29UM,26/02/2020,1174826,29.32,RBS PURCHASING CARD (DT) - AMAZON,,MKS LEGAL SERVICES,Equipment Purchase,Internal Trading Cost Centres
Swale Borough Council,29UM,26/02/2020,1171827,72.67,RBS PURCHASING CARD (DT) - JOINT CONTRACTS TRIBUNAL,,LEISURE & OPEN SPACES,Legal Fees,Cultural and Related Services
Swale Borough Council,29UM,26/02/2020,1174828,10.00,RBS PURCHASING CARD (DT) - HM COURT SERVICES,                         ,REVENUE SERVICES,Court Costs,Central Services to the Public
Swale Borough Council,29UM,26/02/2020,1174828,438.00,RBS PURCHASING CARD (DT) - HM COURT SERVICES,                         ,REVENUE SERVICES,Court Costs,Central Services to the Public
Swale Borough Council,29UM,26/02/2020,1174714,13000.00,S G PETCH LTD,                         ,FINANCIAL SERVICES,Payments in Year,Ledger/Suspense Codes
Swale Borough Council,29UM,26/02/2020,1174530,10000.00,SATEDA,                         ,COMMUNITY SAFETY,Grants & Subscriptions,Environmental and Regulatory Services
Swale Borough Council,29UM,26/02/2020,1174649,250.00,SITTINGBOURNE IN BLOOM,                         ,LEISURE & OPEN SPACES,Special Projects Fund Expenditure - Non CIS,Ledger/Suspense Codes
Swale Borough Council,29UM,26/02/2020,1174654,550.00,SOLACE IN BUSINESS LTD,3150254                  ,CHIEF EXECUTIVE,Fees and Services,Corporate & Democratic Core
Swale Borough Council,29UM,26/02/2020,1174786,10834.92,SOUTH EAST BUILDING CO LTD,1786838                  ,HOUSING SERVICES,Housing Renovation Grants,Not used in this Structure
Swale Borough Council,29UM,26/02/2020,1174819,899910.00,SPIRIT OF SITTINGBOURNE LLP,OC377168                 ,FINANCIAL SERVICES,STC - Capitalised Fees And Charges,Not used in this Structure
Swale Borough Council,29UM,26/02/2020,1174564,6875.00,SQUARE GAIN LTD,09583012                 ,PLANNING SERVICES,Fees and Services,Planning and Development Services
Swale Borough Council,29UM,26/02/2020,1174564,22.95,SQUARE GAIN LTD,09583012                 ,PLANNING SERVICES,Fees and Services,Planning and Development Services
Swale Borough Council,29UM,26/02/2020,1174760,2000.00,STREET PASTORS SITTINGBOURNE,                         ,COMMUNITY SAFETY,Grants & Subscriptions,Planning and Development Services
Swale Borough Council,29UM,26/02/2020,1174693,460.00,SWAMPYS ANIMAL RESCUE,                         ,ECONOMY & COMMUNITIES,Grants & Subscriptions,Central Services to the Public
Swale Borough Council,29UM,26/02/2020,1174595,670.00,THE AVENUE THEATRE,                         ,ECONOMY & COMMUNITIES,Grants & Subscriptions,Central Services to the Public
Swale Borough Council,29UM,26/02/2020,1174602,450.00,THE HARMONY THERAPY TRUST,                         ,ECONOMY & COMMUNITIES,Grants & Subscriptions,Central Services to the Public
Swale Borough Council,29UM,26/02/2020,1174656,1739.00,THE OYSTER PARTNERSHIP,05020374                 ,PLANNING SERVICES,Agency/Contract Staff,Internal Trading Cost Centres
Swale Borough Council,29UM,26/02/2020,1174657,1650.00,THE OYSTER PARTNERSHIP,05020374                 ,PLANNING SERVICES,Agency/Contract Staff,Planning and Development Services
Swale Borough Council,29UM,26/02/2020,1174337,547.00,THREE TOWNS OFFICE EQUIPMENT LTD,                         ,PLANNING SERVICES,Furniture,Planning and Development Services
Swale Borough Council,29UM,26/02/2020,1174117,420.00,TRAFALGAR TAVERN LTD,07999329                 ,HOUSING SERVICES,B & B - Homelessness Landlord Payments,Housing
Swale Borough Council,29UM,26/02/2020,1174118,861.00,TRAFALGAR TAVERN LTD,07999329                 ,HOUSING SERVICES,B & B - Homelessness Landlord Payments,Housing
Swale Borough Council,29UM,26/02/2020,1174665,1260.00,VIVID RESOURCING LIMITED,06459262                 ,PLANNING SERVICES,Agency/Contract Staff,Internal Trading Cost Centres
Swale Borough Council,29UM,26/02/2020,1174038,377.58,WHISTL UK LIMITED,04417047                 ,REVENUE SERVICES,Postage,Central Services to the Public
Swale Borough Council,29UM,26/02/2020,1174038,188.79,WHISTL UK LIMITED,04417047                 ,REVENUE SERVICES,Postage,Housing
Swale Borough Council,29UM,26/02/2020,1174038,2.79,WHISTL UK LIMITED,04417047                 ,LEISURE & OPEN SPACES,Postage,Internal Trading Cost Centres
Swale Borough Council,29UM,26/02/2020,1174038,7.35,WHISTL UK LIMITED,04417047                 ,CAR PARKS,Postage,Internal Trading Cost Centres
Swale Borough Council,29UM,26/02/2020,1174038,45.77,WHISTL UK LIMITED,04417047                 ,PROPERTY SERVICES,Postage,Holding Codes
Swale Borough Council,29UM,26/02/2020,1174038,66.57,WHISTL UK LIMITED,04417047                 ,DEMOCRATIC & ELECTORAL SERVICES,Postage,Central Services to the Public
Swale Borough Council,29UM,26/02/2020,1174221,851.70,WHISTL UK LIMITED,04417047                 ,REVENUE SERVICES,Postage,Central Services to the Public
Swale Borough Council,29UM,26/02/2020,1174221,425.84,WHISTL UK LIMITED,04417047                 ,REVENUE SERVICES,Postage,Housing
Swale Borough Council,29UM,26/02/2020,1174221,13.79,WHISTL UK LIMITED,04417047                 ,CAR PARKS,Postage,Internal Trading Cost Centres
Swale Borough Council,29UM,26/02/2020,1174221,37.06,WHISTL UK LIMITED,04417047                 ,PROPERTY SERVICES,Postage,Holding Codes
Swale Borough Council,29UM,26/02/2020,1174221,77.11,WHISTL UK LIMITED,04417047                 ,DEMOCRATIC & ELECTORAL SERVICES,Postage,Central Services to the Public
Swale Borough Council,29UM,26/02/2020,1174666,895.00,WYNSDALE WASTE MANAGEMENT LTD,07837119                 ,HOUSING SERVICES,Staying Put small repairs (contractors),Housing
Swale Borough Council,29UM,26/02/2020,1174158,1073.00,X-PARK AVENUE RECRUITMENT LTD,10370450                 ,HOUSING SERVICES,Agency/Contract Staff,Housing
Swale Borough Council,29UM,26/02/2020,1174159,1036.00,X-PARK AVENUE RECRUITMENT LTD,10370450                 ,HOUSING SERVICES,Agency/Contract Staff,Housing
Swale Borough Council,29UM,26/02/2020,1174159,72.00,X-PARK AVENUE RECRUITMENT LTD,10370450                 ,HOUSING SERVICES,Agency/Contract Staff,Housing
Swale Borough Council,29UM,26/02/2020,1174366,855.50,X-PARK AVENUE RECRUITMENT LTD,10370450                 ,HOUSING SERVICES,Agency/Contract Staff,Housing
Swale Borough Council,29UM,26/02/2020,1174367,905.33,X-PARK AVENUE RECRUITMENT LTD,10370450                 ,HOUSING SERVICES,Agency/Contract Staff,Housing
Swale Borough Council,29UM,26/02/2020,1174367,72.00,X-PARK AVENUE RECRUITMENT LTD,10370450                 ,HOUSING SERVICES,Agency/Contract Staff,Housing
Swale Borough Council,29UM,26/02/2020,1174555,1073.00,X-PARK AVENUE RECRUITMENT LTD,10370450                 ,HOUSING SERVICES,Agency/Contract Staff,Housing
Swale Borough Council,29UM,26/02/2020,1174580,1073.00,X-PARK AVENUE RECRUITMENT LTD,10370450                 ,HOUSING SERVICES,Agency/Contract Staff,Housing
